fUSD/lending_fUSD_20241119
["ID","MTS","AMOUNT","RATE_DAILY","PERIOD"]
[342607627,1731991840466,-169.67824291,9.999e-05,2]
[342607629,1731991840475,-500.0,9.999e-05,2]
[342607631,1731991840484,-500.0,9.999e-05,2]
[342607633,1731991840493,-500.0,9.999e-05,2]
[342607636,1731991840502,-500.0,9.999e-05,2]
[342607639,1731991840512,-500.0,9.999e-05,2]
[342607641,1731991840521,-298.68515982,9.999e-05,2]
[342607643,1731991840530,-500.0,9.999e-05,2]
[342607645,1731991840539,-500.0,9.999e-05,2]
[342607647,1731991840548,-500.0,9.999e-05,2]
[342607649,1731991840557,-401.80543793,9.999e-05,2]
[342607651,1731991840566,-622.84,9.999e-05,2]
[342607653,1731991840577,-622.84,9.999e-05,2]
[342607655,1731991840586,-622.84,9.999e-05,2]
[342607657,1731991840596,-622.84,9.999e-05,2]
[342607659,1731991840605,-622.84,9.999e-05,2]
[342607661,1731991840614,-622.84,9.999e-05,2]
[342607663,1731991840623,-622.84,9.999e-05,2]
[342607665,1731991840632,-622.84,9.999e-05,2]
[342607667,1731991840641,-622.84,9.999e-05,2]
[342607669,1731991840650,-622.84,9.999e-05,2]
[342607671,1731991840659,-622.84,9.999e-05,2]
[342607673,1731991840668,-622.84,9.999e-05,2]
[342607675,1731991840678,-622.84,9.999e-05,2]
[342607677,1731991840687,-622.84,9.999e-05,2]
[342607679,1731991840696,-622.84,9.999e-05,2]
[342607681,1731991840708,-622.84,9.999e-05,2]
[342607683,1731991840717,-622.84,9.999e-05,2]
[342607685,1731991840726,-622.84,9.999e-05,2]
[342607687,1731991840735,-622.84,9.999e-05,2]
[342607689,1731991840745,-622.84,9.999e-05,2]
[342607691,1731991840754,-622.91,9.999e-05,2]
[342607693,1731991840763,-500.0,9.999e-05,2]
[342607695,1731991840772,-500.0,9.999e-05,2]
[342607697,1731991840783,-500.0,9.999e-05,2]
[342607699,1731991840792,-500.0,9.999e-05,2]
[342607701,1731991840801,-308.71836276,9.999e-05,2]
[342607703,1731991840811,-171.35287792,9.999e-05,2]
[342607705,1731991840820,-636.0,9.999e-05,2]
[342607707,1731991840830,-87718.8789204,0.0001,2]
[342607736,1731991841136,-93118.71170578,0.0001,2]
[342607738,1731991841146,-8399.16646616,0.0001,2]
[342607740,1731991841155,-155.78764471,0.0001,2]
[342607742,1731991841165,-331514.15046171,0.0001,2]
[342607744,1731991841179,-7427.11578287,0.0001,2]
[342607756,1731991841385,-500.0,9.997e-05,2]
[342607757,1731991841394,-500.0,9.997e-05,2]
[342607758,1731991841404,-500.0,9.998e-05,2]
[342607759,1731991841413,-500.0,9.998e-05,2]
[342607760,1731991841422,-10601.2997041,0.0001,2]
[342607761,1731991841433,-5536491.06941118,0.0001,2]
[342607762,1731991841444,-2037.24135,0.0001,2]
[342607763,1731991841454,-45845.71883765,0.0001,2]
[342607764,1731991841465,-749.74090697,0.0001,2]
[342607765,1731991841476,-65128.52060173,0.0001,2]
[342607766,1731991841811,-55185.22046248,0.0001,2]
[342607767,1731991841828,-10190.0,0.0001,2]
[342607768,1731991841846,-12184.30763373,0.0001,2]
[342607769,1731991841857,-1162.4999999,0.0001,2]
[342607770,1731991841870,-368.38927999,0.0001,2]
[342607774,1731991842979,-197.85,9.997e-05,2]
[342607775,1731991842989,-9496.50788781,0.0001,2]
[342607776,1731991843034,-2985.98666378,0.0001,2]
[342607777,1731991843091,-2966.15851411,0.0001,2]
[342607778,1731991843149,-3990.34092305,0.0001,2]
[342607796,1731991845849,-286.57703796,9.997e-05,2]
[342607801,1731991845907,-213.42296204,9.997e-05,2]
[342607803,1731991845917,-131.27703796,9.997e-05,2]
[342607805,1731991845928,-368.72296204,9.997e-05,2]
[342607806,1731991845937,-500.0,9.997e-05,2]
[342607808,1731991845946,-500.0,9.997e-05,2]
[342607810,1731991845955,-500.0,9.998e-05,2]
[342607812,1731991845964,-500.0,9.998e-05,2]
[342607813,1731991845974,-4.48410191,9.998e-05,2]
[342607814,1731991845997,-495.51589809,9.998e-05,2]
[342607815,1731991846007,-500.0,9.998e-05,2]
[342607816,1731991846017,-500.0,9.998e-05,2]
[342607817,1731991846026,-500.0,9.998e-05,2]
[342607818,1731991846036,-402.11988421,9.998e-05,2]
[342607819,1731991846095,-97.88011579,9.998e-05,2]
[342607820,1731991846104,-500.0,9.999e-05,2]
[342607821,1731991846113,-520.82,9.999e-05,2]
[342607822,1731991846123,-500.0,9.999e-05,2]
[342607823,1731991846134,-500.0,9.999e-05,2]
[342607824,1731991846142,-51162.35741288,0.0001,2]
[342607825,1731991846159,-65942.8804178,0.0001,2]
[342607826,1731991846171,-1351.4819385,0.0001,2]
[342607827,1731991846183,-289038.19606101,0.0001,2]
[342607839,1731991847264,-782.14488215,0.0001,2]
[342607840,1731991847275,-3096.90995514,0.0001,2]
[342607841,1731991847286,-1368.55818,0.0001,2]
[342607842,1731991847298,-22745.09079726,0.0001,2]
[342607843,1731991847310,-21598.13505654,0.0001,2]
[342607844,1731991881279,-300.0,9e-05,3]
[342607845,1731991883499,-164.36,9.1e-05,3]
[342607846,1731991948545,804.687456,0.00023,120]
[342607847,1731992008761,500.0,0.00022703,120]
[342607848,1731992082496,150.0,8.219e-05,2]
[342607849,1731992082517,135.77,8.219e-05,2]
[342607850,1731992610849,500.0,0.00022703,120]
[342607852,1731992656902,150.0,8.446e-05,2]
[342607853,1731992656929,325.77,8.446e-05,2]
[342607854,1731992667354,-161.59,8.514e-05,2]
[342607855,1731992668787,-196.37578748,8.6e-05,2]
[342607856,1731992669430,-500.0,8.6e-05,2]
[342607857,1731992670088,-372.98,8.6e-05,2]
[342607858,1731992670985,-500.0,8.6e-05,2]
[342607859,1731992671436,-500.0,8.6e-05,2]
[342607860,1731992671795,-500.0,8.6e-05,2]
[342607861,1731992672598,-497.42353092,8.6e-05,2]
[342607862,1731992673243,-500.0,8.6e-05,2]
[342607863,1731992673897,-315.2606816,8.6e-05,2]
[342607864,1731992675389,-480.9993184,8.613e-05,2]
[342607865,1731992687305,756.1358,8.5e-05,2]
[342607869,1731992865622,250.0,8.488e-05,2]
[342607870,1731992891563,503.0796308,0.00023,120]
[342607873,1731992942984,3370.403531,8.178e-05,2]
[342607874,1731992951197,200.0,8.5e-05,2]
[342607880,1731992953039,271.48,8.219e-05,2]
[342607888,1731993032153,-23900.0,8.523e-05,2]
[342607889,1731993032164,-150.0,8.604e-05,2]
[342607890,1731993032173,-300.0,8.604e-05,2]
[342607891,1731993032183,-101788.25000706,8.605e-05,2]
[342607892,1731993032195,-144600.5,8.605e-05,2]
[342607893,1731993032206,-404.92261432,8.605e-05,2]
[342607894,1731993032433,-516.22706837,8.605e-05,2]
[342607895,1731993032486,-24363.50225454,8.605e-05,2]
[342607896,1731993032604,-624.22008668,8.605e-05,2]
[342607897,1731993032615,-18280.86493534,8.605e-05,2]
[342607898,1731993032659,-3122.13181761,8.605e-05,2]
[342607900,1731993032671,-4549.2968575,8.605e-05,2]
[342607911,1731993038067,-83442.56534994,8.605e-05,2]
[342607912,1731993038127,-2746.64701711,8.605e-05,2]
[342607913,1731993038186,-67201.04697098,8.605e-05,2]
[342607914,1731993038437,-636.12,8.605e-05,2]
[342607915,1731993038448,-811.21,8.605e-05,2]
[342607916,1731993038460,-1989.47898931,8.605e-05,2]
[342607917,1731993038525,-425101.71767724,8.605e-05,2]
[342607918,1731993038535,-519.0006816,8.613e-05,2]
[342607919,1731993038549,-200.0,8.648e-05,2]
[342607920,1731993038558,-300.0,8.705e-05,2]
[342607921,1731993038567,-3492.03,8.724e-05,2]
[342607922,1731993038576,-1696.6,8.724e-05,2]
[342607923,1731993038585,-150.11,8.892e-05,2]
[342607924,1731993038594,-166.71,8.913e-05,2]
[342607925,1731993038603,-164.64,8.929e-05,2]
[342607926,1731993038612,-300.0,9e-05,3]
[342607927,1731993038623,-600.0,9.1e-05,3]
[342607928,1731993038633,-550.76,9.102e-05,2]
[342607929,1731993038643,-900.0,9.2e-05,3]
[342607930,1731993038652,-433.37,9.278e-05,2]
[342607931,1731993038661,-1200.0,9.3e-05,3]
[342607932,1731993038670,-1500.0,9.4e-05,3]
[342607933,1731993038679,-150.0,9.456e-05,2]
[342607934,1731993038688,-255.0,9.464e-05,2]
[342607935,1731993038697,-420.0,9.464e-05,2]
[342607936,1731993038706,-433.34,9.478e-05,2]
[342607937,1731993038715,-2012.19298361,9.5e-05,2]
[342607938,1731993038725,-30000.0,9.5e-05,2]
[342607939,1731993038734,-300.0,9.5e-05,3]
[342607940,1731993038743,-1041.7035,9.57e-05,2]
[342607941,1731993038753,-658.3314,9.57e-05,2]
[342607942,1731993038762,-400.0,9.6e-05,2]
[342607943,1731993038771,-161.389137,9.6e-05,2]
[342607944,1731993038780,-300.0,9.6e-05,3]
[342607945,1731993038790,-204.91,9.67e-05,2]
[342607946,1731993038799,-999.99,9.67e-05,2]
[342607947,1731993038808,-650.35,9.67e-05,2]
[342607948,1731993038817,-37525.99,9.67e-05,2]
[342607949,1731993038826,-5622.83,9.67e-05,2]
[342607950,1731993038835,-857.1,9.67e-05,2]
[342607951,1731993038844,-737.98,9.67e-05,2]
[342607952,1731993038854,-625.69,9.67e-05,2]
[342607953,1731993038862,-150.99,9.67e-05,2]
[342607954,1731993038871,-299.99,9.67e-05,2]
[342607955,1731993038881,-1000.0,9.69e-05,2]
[342607956,1731993038891,-217.0116,9.698e-05,2]
[342607957,1731993038900,-300.0,9.7e-05,3]
[342607958,1731993038909,-888.7198,9.798e-05,2]
[342607959,1731993038918,-1475.6878,9.798e-05,2]
[342607960,1731993038927,-300.0,9.8e-05,3]
[342607961,1731993038935,-500.0,9.863e-05,2]
[342607962,1731993038945,-500.0,9.863e-05,2]
[342607963,1731993038954,-500.0,9.863e-05,2]
[342607964,1731993039273,-500.0,9.863e-05,2]
[342607965,1731993039283,-500.0,9.863e-05,2]
[342607966,1731993039292,-500.0,9.863e-05,2]
[342607967,1731993039302,-500.0,9.863e-05,2]
[342607968,1731993039311,-500.0,9.863e-05,2]
[342607969,1731993039320,-500.0,9.863e-05,2]
[342607970,1731993039331,-500.0,9.863e-05,2]
[342607971,1731993039340,-500.0,9.863e-05,2]
[342607972,1731993039349,-500.0,9.863e-05,2]
[342607973,1731993039360,-500.0,9.863e-05,2]
[342607974,1731993039369,-500.0,9.863e-05,2]
[342607975,1731993039378,-500.0,9.863e-05,2]
[342607976,1731993039389,-500.0,9.863e-05,2]
[342607977,1731993039398,-500.0,9.863e-05,2]
[342607978,1731993039407,-500.0,9.863e-05,2]
[342607979,1731993039416,-500.0,9.863e-05,2]
[342607980,1731993039426,-500.0,9.863e-05,2]
[342607981,1731993039436,-500.0,9.863e-05,2]
[342607982,1731993039446,-500.0,9.863e-05,2]
[342607983,1731993039455,-562.77676867,9.863e-05,2]
[342607984,1731993039463,-991.71,9.863e-05,2]
[342607985,1731993039472,-991.71,9.863e-05,2]
[342607986,1731993039481,-991.71,9.863e-05,2]
[342607987,1731993039490,-991.71,9.863e-05,2]
[342607988,1731993039499,-500.0,9.863e-05,2]
[342607989,1731993039508,-500.0,9.863e-05,2]
[342607990,1731993039517,-500.0,9.863e-05,2]
[342607991,1731993039526,-500.0,9.863e-05,2]
[342607992,1731993039535,-500.0,9.863e-05,2]
[342607993,1731993039544,-594.30090927,9.863e-05,2]
[342607994,1731993039554,-500.0,9.863e-05,2]
[342607995,1731993039563,-500.0,9.863e-05,2]
[342607996,1731993039572,-500.0,9.863e-05,2]
[342607997,1731993039581,-500.0,9.863e-05,2]
[342607998,1731993039590,-500.0,9.863e-05,2]
[342607999,1731993039599,-500.0,9.863e-05,2]
[342608000,1731993039608,-500.0,9.863e-05,2]
[342608001,1731993039616,-500.0,9.863e-05,2]
[342608002,1731993039626,-500.0,9.863e-05,2]
[342608003,1731993039636,-500.0,9.863e-05,2]
[342608004,1731993039645,-500.0,9.863e-05,2]
[342608005,1731993039655,-175.92,9.863e-05,2]
[342608006,1731993039664,-500.0,9.863e-05,2]
[342608007,1731993039673,-500.0,9.863e-05,2]
[342608008,1731993039683,-500.0,9.863e-05,2]
[342608009,1731993039693,-500.0,9.863e-05,2]
[342608010,1731993039702,-500.0,9.863e-05,2]
[342608011,1731993039712,-500.0,9.863e-05,2]
[342608012,1731993039722,-500.0,9.863e-05,2]
[342608013,1731993039731,-500.0,9.863e-05,2]
[342608014,1731993039740,-500.11,9.863e-05,2]
[342608015,1731993039750,-500.0,9.863e-05,2]
[342608016,1731993039760,-500.11,9.863e-05,2]
[342608017,1731993039769,-500.11,9.863e-05,2]
[342608018,1731993039779,-500.0,9.863e-05,2]
[342608019,1731993039789,-500.11,9.863e-05,2]
[342608020,1731993039798,-500.0,9.863e-05,2]
[342608021,1731993039807,-573.9049773,9.863e-05,2]
[342608022,1731993039817,-500.0,9.863e-05,2]
[342608023,1731993039826,-500.0,9.863e-05,2]
[342608024,1731993039835,-500.0,9.863e-05,2]
[342608025,1731993039844,-500.0,9.863e-05,2]
[342608026,1731993039853,-500.0,9.863e-05,2]
[342608027,1731993039862,-500.0,9.863e-05,2]
[342608028,1731993039871,-500.0,9.863e-05,2]
[342608029,1731993039879,-500.0,9.863e-05,2]
[342608030,1731993039889,-500.0,9.863e-05,2]
[342608031,1731993039899,-1308.798,9.896e-05,2]
[342608032,1731993039908,-500.0,9.896e-05,2]
[342608033,1731993039917,-500.0,9.896e-05,2]
[342608034,1731993039927,-500.0,9.896e-05,2]
[342608035,1731993039935,-221.16494476,9.896e-05,2]
[342608036,1731993039945,-500.0,9.896e-05,2]
[342608037,1731993039954,-500.0,9.896e-05,2]
[342608038,1731993039963,-500.0,9.896e-05,2]
[342608039,1731993039972,-500.0,9.896e-05,2]
[342608040,1731993039981,-500.0,9.896e-05,2]
[342608041,1731993039990,-500.0,9.896e-05,2]
[342608042,1731993039999,-500.0,9.896e-05,2]
[342608043,1731993040008,-500.0,9.896e-05,2]
[342608044,1731993040017,-2251.6,9.896e-05,2]
[342608045,1731993040026,-500.0,9.896e-05,2]
[342608046,1731993040035,-500.0,9.896e-05,2]
[342608047,1731993040044,-354.69198191,9.896e-05,2]
[342608048,1731993040053,-500.0,9.896e-05,2]
[342608049,1731993040062,-500.0,9.896e-05,2]
[342608050,1731993040071,-500.0,9.896e-05,2]
[342608051,1731993040080,-500.0,9.896e-05,2]
[342608052,1731993040093,-500.0,9.896e-05,2]
[342608053,1731993040102,-595.68,9.896e-05,2]
[342608054,1731993040111,-500.0,9.896e-05,2]
[342608055,1731993040120,-500.0,9.896e-05,2]
[342608056,1731993040129,-500.0,9.896e-05,2]
[342608057,1731993040141,-500.0,9.896e-05,2]
[342608058,1731993040151,-500.0,9.896e-05,2]
[342608059,1731993040160,-500.0,9.896e-05,2]
[342608060,1731993040171,-500.0,9.896e-05,2]
[342608061,1731993040180,-500.0,9.896e-05,2]
[342608062,1731993040189,-500.0,9.896e-05,2]
[342608063,1731993040198,-500.0,9.896e-05,2]
[342608064,1731993040207,-500.0,9.896e-05,2]
[342608065,1731993040216,-500.0,9.896e-05,2]
[342608066,1731993040225,-500.0,9.896e-05,2]
[342608067,1731993040234,-500.0,9.896e-05,2]
[342608068,1731993040243,-500.0,9.896e-05,2]
[342608069,1731993040253,-991.71,9.896e-05,2]
[342608070,1731993040262,-500.0,9.896e-05,2]
[342608071,1731993040271,-598.33,9.896e-05,2]
[342608072,1731993040280,-500.0,9.896e-05,2]
[342608073,1731993040289,-500.0,9.896e-05,2]
[342608074,1731993040299,-482.66263414,9.896e-05,2]
[342608075,1731993040308,-500.0,9.896e-05,2]
[342608076,1731993040317,-500.0,9.896e-05,2]
[342608077,1731993040326,-500.0,9.896e-05,2]
[342608078,1731993040335,-500.0,9.896e-05,2]
[342608079,1731993040344,-500.0,9.896e-05,2]
[342608080,1731993040353,-500.0,9.896e-05,2]
[342608081,1731993040363,-500.0,9.896e-05,2]
[342608082,1731993040372,-500.0,9.896e-05,2]
[342608083,1731993040381,-500.0,9.896e-05,2]
[342608084,1731993040391,-500.11,9.896e-05,2]
[342608085,1731993040400,-342.22163606,9.896e-05,2]
[342608086,1731993040408,-500.0,9.896e-05,2]
[342608087,1731993040418,-500.0,9.896e-05,2]
[342608088,1731993040427,-500.0,9.896e-05,2]
[342608089,1731993040436,-500.0,9.896e-05,2]
[342608090,1731993040445,-500.0,9.896e-05,2]
[342608091,1731993040454,-500.0,9.897e-05,2]
[342608092,1731993040463,-500.0,9.897e-05,2]
[342608093,1731993040472,-500.0,9.897e-05,2]
[342608094,1731993040482,-500.0,9.897e-05,2]
[342608095,1731993040491,-500.0,9.897e-05,2]
[342608096,1731993040500,-500.0,9.897e-05,2]
[342608097,1731993040509,-500.0,9.897e-05,2]
[342608098,1731993040518,-500.0,9.897e-05,2]
[342608099,1731993040527,-500.0,9.897e-05,2]
[342608100,1731993040536,-500.0,9.897e-05,2]
[342608101,1731993040545,-500.0,9.897e-05,2]
[342608102,1731993040554,-500.0,9.897e-05,2]
[342608103,1731993040563,-500.0,9.897e-05,2]
[342608104,1731993040573,-500.0,9.897e-05,2]
[342608105,1731993040582,-500.0,9.897e-05,2]
[342608106,1731993040592,-500.0,9.897e-05,2]
[342608107,1731993040601,-500.0,9.897e-05,2]
[342608108,1731993040610,-500.0,9.897e-05,2]
[342608109,1731993040619,-500.0,9.897e-05,2]
[342608110,1731993040628,-500.0,9.897e-05,2]
[342608111,1731993040639,-500.0,9.897e-05,2]
[342608112,1731993040655,-500.0,9.897e-05,2]
[342608113,1731993040664,-500.0,9.897e-05,2]
[342608114,1731993040674,-500.0,9.897e-05,2]
[342608115,1731993040683,-616.57917972,9.897e-05,2]
[342608116,1731993040693,-500.0,9.897e-05,2]
[342608117,1731993040702,-500.0,9.897e-05,2]
[342608118,1731993040712,-366.25,9.897e-05,2]
[342608119,1731993040721,-504.76851068,9.897e-05,2]
[342608120,1731993040730,-500.0,9.897e-05,2]
[342608121,1731993040739,-500.0,9.897e-05,2]
[342608122,1731993040749,-268.96318488,9.897e-05,2]
[342608123,1731993040759,-500.0,9.897e-05,2]
[342608124,1731993040769,-500.0,9.897e-05,2]
[342608125,1731993040778,-500.0,9.897e-05,2]
[342608126,1731993040788,-182.80365825,9.897e-05,2]
[342608127,1731993040797,-542.92319272,9.897e-05,2]
[342608128,1731993040806,-500.0,9.897e-05,2]
[342608129,1731993040816,-481.59058809,9.897e-05,2]
[342608130,1731993040826,-500.0,9.897e-05,2]
[342608131,1731993040835,-500.0,9.897e-05,2]
[342608132,1731993040845,-333.44539887,9.897e-05,2]
[342608133,1731993040854,-500.0,9.897e-05,2]
[342608134,1731993040863,-500.0,9.897e-05,2]
[342608135,1731993040872,-500.0,9.897e-05,2]
[342608136,1731993040882,-500.0,9.897e-05,2]
[342608137,1731993040891,-500.0,9.897e-05,2]
[342608138,1731993040900,-500.0,9.897e-05,2]
[342608139,1731993040910,-500.0,9.897e-05,2]
[342608140,1731993040920,-500.0,9.897e-05,2]
[342608141,1731993040930,-500.0,9.897e-05,2]
[342608142,1731993040940,-500.0,9.897e-05,2]
[342608143,1731993040950,-500.0,9.897e-05,2]
[342608144,1731993040959,-500.0,9.897e-05,2]
[342608145,1731993040968,-500.0,9.897e-05,2]
[342608146,1731993040977,-500.0,9.897e-05,2]
[342608147,1731993040986,-500.0,9.897e-05,2]
[342608148,1731993040995,-500.0,9.897e-05,2]
[342608149,1731993041004,-500.0,9.897e-05,2]
[342608150,1731993041015,-500.0,9.897e-05,2]
[342608151,1731993041026,-500.0,9.897e-05,2]
[342608152,1731993041036,-500.0,9.897e-05,2]
[342608153,1731993041046,-500.0,9.897e-05,2]
[342608154,1731993041055,-500.0,9.897e-05,2]
[342608155,1731993041065,-500.0,9.897e-05,2]
[342608156,1731993041074,-500.0,9.897e-05,2]
[342608157,1731993041084,-547.72,9.897e-05,2]
[342608158,1731993041095,-547.72,9.897e-05,2]
[342608159,1731993041104,-634.57506282,9.897e-05,2]
[342608160,1731993041115,-547.72,9.897e-05,2]
[342608161,1731993041125,-500.0,9.897e-05,2]
[342608162,1731993041136,-500.0,9.897e-05,2]
[342608163,1731993041148,-353.55217659,9.897e-05,2]
[342608164,1731993041157,-500.0,9.897e-05,2]
[342608165,1731993041166,-502.90474228,9.897e-05,2]
[342608166,1731993041176,-500.0,9.897e-05,2]
[342608167,1731993041186,-506.15402108,9.897e-05,2]
[342608168,1731993041195,-568.63884524,9.897e-05,2]
[342608169,1731993041204,-500.0,9.897e-05,2]
[342608170,1731993041213,-500.0,9.897e-05,2]
[342608171,1731993041223,-500.0,9.897e-05,2]
[342608172,1731993041231,-447.28167548,9.897e-05,2]
[342608173,1731993041240,-223.47321073,9.897e-05,2]
[342608174,1731993041249,-500.0,9.897e-05,2]
[342608175,1731993041259,-500.0,9.897e-05,2]
[342608176,1731993041267,-500.0,9.897e-05,2]
[342608177,1731993041276,-500.0,9.897e-05,2]
[342608178,1731993041285,-500.0,9.897e-05,2]
[342608179,1731993041294,-317.22494627,9.897e-05,2]
[342608180,1731993041304,-500.0,9.897e-05,2]
[342608181,1731993041314,-500.0,9.897e-05,2]
[342608182,1731993041323,-151.79970924,9.897e-05,2]
[342608183,1731993041334,-500.0,9.897e-05,2]
[342608184,1731993041344,-500.0,9.897e-05,2]
[342608185,1731993041355,-500.0,9.897e-05,2]
[342608186,1731993041365,-500.0,9.897e-05,2]
[342608187,1731993041376,-517.21057074,9.897e-05,2]
[342608188,1731993041388,-500.0,9.897e-05,2]
[342608189,1731993041396,-500.0,9.897e-05,2]
[342608190,1731993041405,-535.90619415,9.897e-05,2]
[342608191,1731993041414,-500.0,9.897e-05,2]
[342608192,1731993041423,-500.0,9.897e-05,2]
[342608193,1731993041432,-574.03067,9.897e-05,2]
[342608194,1731993041442,-500.0,9.897e-05,2]
[342608195,1731993041452,-500.0,9.897e-05,2]
[342608196,1731993041462,-500.0,9.897e-05,2]
[342608197,1731993041471,-500.0,9.897e-05,2]
[342608198,1731993041480,-500.0,9.897e-05,2]
[342608199,1731993041488,-500.0,9.897e-05,2]
[342608200,1731993041498,-500.0,9.897e-05,2]
[342608201,1731993041508,-500.0,9.897e-05,2]
[342608202,1731993041518,-500.0,9.897e-05,2]
[342608203,1731993041528,-500.0,9.897e-05,2]
[342608204,1731993041538,-500.0,9.897e-05,2]
[342608205,1731993041547,-500.0,9.897e-05,2]
[342608206,1731993041556,-500.0,9.897e-05,2]
[342608207,1731993041566,-500.0,9.897e-05,2]
[342608208,1731993041575,-504.25903431,9.897e-05,2]
[342608209,1731993041584,-553.51037245,9.897e-05,2]
[342608210,1731993041593,-366.32717882,9.897e-05,2]
[342608211,1731993041603,-500.0,9.897e-05,2]
[342608212,1731993041612,-478.69926646,9.897e-05,2]
[342608213,1731993041620,-500.0,9.897e-05,2]
[342608214,1731993041630,-500.0,9.897e-05,2]
[342608215,1731993041641,-500.0,9.897e-05,2]
[342608216,1731993041651,-500.0,9.897e-05,2]
[342608217,1731993041660,-500.0,9.897e-05,2]
[342608218,1731993041669,-500.0,9.897e-05,2]
[342608219,1731993041678,-500.0,9.897e-05,2]
[342608220,1731993041688,-500.0,9.897e-05,2]
[342608221,1731993041697,-505.12610187,9.897e-05,2]
[342608222,1731993041707,-500.0,9.897e-05,2]
[342608223,1731993041716,-500.0,9.897e-05,2]
[342608224,1731993041726,-500.0,9.897e-05,2]
[342608225,1731993041735,-500.0,9.897e-05,2]
[342608226,1731993041744,-500.0,9.897e-05,2]
[342608227,1731993041754,-500.0,9.897e-05,2]
[342608228,1731993041763,-500.0,9.897e-05,2]
[342608229,1731993041772,-518.55743153,9.897e-05,2]
[342608230,1731993041782,-500.0,9.897e-05,2]
[342608231,1731993041792,-466.49546835,9.897e-05,2]
[342608232,1731993041802,-500.0,9.897e-05,2]
[342608233,1731993041811,-500.0,9.897e-05,2]
[342608234,1731993041820,-190.2499261,9.897e-05,2]
[342608235,1731993041830,-500.0,9.897e-05,2]
[342608236,1731993041840,-500.0,9.897e-05,2]
[342608237,1731993041849,-500.0,9.897e-05,2]
[342608238,1731993041863,-500.0,9.897e-05,2]
[342608239,1731993041872,-170.52,9.897e-05,2]
[342608240,1731993041881,-170.52,9.897e-05,2]
[342608241,1731993041892,-170.52,9.897e-05,2]
[342608242,1731993041902,-223.94902896,9.897e-05,2]
[342608243,1731993041911,-500.0,9.897e-05,2]
[342608244,1731993041922,-500.0,9.897e-05,2]
[342608245,1731993041932,-500.0,9.897e-05,2]
[342608246,1731993041940,-500.0,9.897e-05,2]
[342608247,1731993041950,-507.09664814,9.897e-05,2]
[342608248,1731993041959,-502.84565263,9.897e-05,2]
[342608249,1731993041968,-500.0,9.897e-05,2]
[342608250,1731993041977,-500.0,9.897e-05,2]
[342608251,1731993041987,-500.0,9.897e-05,2]
[342608252,1731993041997,-500.0,9.897e-05,2]
[342608253,1731993042006,-500.0,9.897e-05,2]
[342608254,1731993042015,-500.0,9.897e-05,2]
[342608255,1731993042024,-500.0,9.897e-05,2]
[342608256,1731993042034,-500.0,9.897e-05,2]
[342608257,1731993042043,-500.0,9.897e-05,2]
[342608258,1731993042053,-500.0,9.897e-05,2]
[342608259,1731993042062,-500.0,9.897e-05,2]
[342608260,1731993042071,-511.77506157,9.897e-05,2]
[342608261,1731993042080,-601.68069207,9.897e-05,2]
[342608262,1731993042092,-500.0,9.897e-05,2]
[342608263,1731993042103,-500.0,9.897e-05,2]
[342608264,1731993042112,-500.0,9.897e-05,2]
[342608265,1731993042121,-500.0,9.897e-05,2]
[342608266,1731993042130,-500.0,9.897e-05,2]
[342608267,1731993042142,-500.0,9.897e-05,2]
[342608268,1731993042151,-500.0,9.897e-05,2]
[342608269,1731993042161,-500.0,9.897e-05,2]
[342608270,1731993042172,-500.0,9.897e-05,2]
[342608271,1731993042181,-500.0,9.897e-05,2]
[342608272,1731993042191,-319.60087245,9.897e-05,2]
[342608273,1731993042200,-500.0,9.897e-05,2]
[342608274,1731993042209,-500.0,9.897e-05,2]
[342608275,1731993042218,-500.0,9.897e-05,2]
[342608276,1731993042227,-500.0,9.897e-05,2]
[342608277,1731993042236,-627.73719015,9.897e-05,2]
[342608278,1731993042245,-500.0,9.897e-05,2]
[342608279,1731993042255,-505.699591,9.897e-05,2]